bitfinex-derivatives/quotes_ETHF0:USTF0_20250531
["timestamp","ask_amount","ask_price","bid_price","bid_amount"]
[1748667224440,8.72115637,2521.9,2521.8,0.00595581]
[1748667224643,8.4529898,2521.9,2521.8,0.00595581]
[1748667224941,8.72116575,2521.9,2521.8,0.00595581]
[1748667225136,8.72112576,2521.9,2521.8,0.00595581]
[1748667225341,8.72112543,2521.9,2521.8,0.00595581]
[1748667225545,0.79291,2521.4,2521.2,1.46564]
[1748667225844,4.00071,2521.4,2521.2,1.46564]
[1748667226442,1.4120598,2521.3,2521.2,1.46564]
[1748667227051,1.4120598,2521.3,2521.2,2.09544]
[1748667227440,1.4120598,2521.3,2521.2,3.39464]
[1748667227946,1.4120598,2521.7,2521.6,0.79283]
[1748667229351,1.4120598,2521.8,2521.7,0.7928]
[1748667230145,1.4120598,2522.0,2521.9,0.79273]
[1748667232153,1.4120598,2522.2,2522.0,0.7927]
[1748667232450,1.4120598,2522.2,2522.1,1.3547]
[1748667232955,2.2046998,2522.2,2522.1,1.3547]
[1748667233561,1.4120598,2522.2,2522.1,1.3547]
[1748667233856,1.4120598,2522.2,2522.1,2.14737]
[1748667234356,1.4120598,2522.2,2522.1,1.3547]
[1748667234559,1.4120598,2522.2,2522.1,2.14737]
[1748667234758,1.4120598,2522.2,2522.1,1.3547]
[1748667235059,1.4120598,2522.2,2522.1,2.14737]
[1748667236554,0.79264,2522.2,2522.1,1.3547]
[1748667236856,2.2046998,2522.2,2522.1,1.3547]
[1748667237058,1.4120598,2522.2,2522.1,2.14737]
[1748667237458,2.2046998,2522.2,2522.1,2.14737]
[1748667237958,2.2046998,2522.2,2522.1,1.3547]
[1748667238757,1.4120598,2522.2,2522.1,1.3547]
[1748667238951,1.4120598,2522.3,2522.1,2.14737]
[1748667239154,2.2046698,2522.3,2522.2,1.3226]
[1748667239353,1.4120598,2522.3,2522.2,1.3226]
[1748667239658,1.40610399,2522.3,2522.2,7.11524]
[1748667241258,0.79253,2522.6,2522.3,0.79261]
[1748667241460,0.79253,2522.6,2522.4,0.6412]
[1748667241658,0.79253,2522.6,2522.5,1.2694]
[1748667241855,0.79255,2522.5,2522.4,0.6412]
[1748667242158,0.79258,2522.4,2522.3,0.00595581]
[1748667242352,2.13848,2522.4,2522.3,0.00595581]
[1748667243667,7.13848,2522.4,2522.3,0.00595581]
[1748667244462,1.98164,2522.2,2521.4,4.00067]
[1748667244657,3.2078,2521.9,2521.5,0.79285]
[1748667244859,4.00056,2521.9,2521.6,2.078]
[1748667245066,0.79277,2521.8,2521.7,1.2852]
[1748667245254,3.2078,2521.9,2521.4,0.79288]
[1748667245564,0.79285,2521.6,2521.4,0.00595581]
[1748667245757,0.79281,2521.7,2521.4,0.79882581]
[1748667245959,1.47712,2521.7,2521.4,0.79882581]
[1748667247861,1.47712,2521.7,2521.5,0.6602]
[1748667249458,2.71862,2521.7,2521.5,0.6602]
[1748667249765,0.79283,2521.6,2521.5,0.6602]
[1748667249957,2.03433,2521.6,2521.5,0.6602]
[1748667250159,0.79286,2521.5,2521.4,0.00595581]
[1748667250358,1.47712,2521.7,2521.4,0.79883581]
[1748667250863,1.47712,2521.7,2521.5,0.79286]
[1748667251871,3.2078,2521.8,2521.7,0.7928]
[1748667252667,4.62269529,2521.8,2521.7,0.7928]
[1748667252961,1.41489529,2521.8,2521.7,0.7928]
[1748667253568,1.41489529,2521.8,2521.5,1.3563]
[1748667253768,1.41489529,2521.8,2521.7,0.7928]
[1748667254763,1.41489529,2521.8,2521.6,0.79281]
[1748667254964,2.20766529,2521.8,2521.6,0.79281]
[1748667255169,3.57236529,2521.8,2521.6,0.79281]
[1748667255670,1.41489529,2521.7,2521.6,0.79281]
[1748667258172,4.62269529,2521.7,2521.4,0.00595581]
[1748667258364,1.8622,2521.6,2521.4,0.00595581]
[1748667258564,1.8622,2521.6,2521.5,0.79286]
[1748667258868,2.65503,2521.6,2521.4,0.00595581]
[1748667259169,2.65503,2521.6,2521.4,0.79884581]
[1748667259374,2.65503,2521.6,2521.4,0.00595581]
[1748667259672,2.65503,2521.6,2521.4,0.79884581]
[1748667260168,1.8622,2521.6,2521.4,0.79884581]
[1748667260566,1.8622,2521.6,2521.5,0.79286]
[1748667265070,3.27709529,2521.6,2521.5,0.79286]
[1748667266271,4.06993529,2521.6,2521.4,0.79883581]
[1748667266472,1.3089,2521.5,2521.4,0.79883581]
[1748667266771,2.72379529,2521.5,2521.4,0.79883581]
[1748667267670,2.72379529,2521.5,2521.4,0.00595581]
[1748667267871,3.51665529,2521.5,2521.4,0.00595581]
[1748667268271,2.72379529,2521.5,2521.4,0.79884581]
[1748667269770,1.41489529,2521.5,2521.4,0.79884581]
[1748667271079,1.41489529,2521.6,2521.5,0.79286]
[1748667271275,2.20773529,2521.6,2521.4,0.79882581]
[1748667271578,1.3644,2521.5,2521.4,0.79882581]
[1748667272077,2.77929529,2521.5,2521.4,0.79882581]
[1748667274181,1.41489529,2521.5,2521.4,0.79882581]
[1748667274379,2.20775529,2521.5,2521.4,0.00595581]
[1748667274781,1.41489529,2521.5,2521.4,0.79884581]
[1748667275482,2.20775529,2521.5,2521.4,0.00595581]
[1748667275684,3.44395529,2521.5,2521.4,0.00595581]
[1748667275981,2.65109529,2521.5,2521.4,0.79884581]
[1748667277277,3.44395529,2521.5,2521.4,0.00595581]
[1748667277586,4.09145529,2521.5,2521.4,0.00595581]
[1748667277882,8.01045529,2521.5,2521.4,0.00595581]
[1748667278086,13.23370222,2521.5,2521.4,0.00595581]
[1748667278287,13.01045529,2521.5,2521.4,0.00595581]
[1748667278585,10.58428932,2521.5,2521.4,0.00595581]
[1748667278782,10.5842927,2521.5,2521.4,0.00595581]
[1748667278981,10.36108982,2521.5,2521.4,0.00595581]
[1748667279179,10.58430395,2521.5,2521.4,0.00595581]
[1748667279380,10.36108982,2521.5,2521.4,0.00595581]
[1748667279577,10.58430412,2521.5,2521.4,0.00595581]
[1748667279784,9.56822982,2521.5,2521.4,0.00595581]
[1748667279979,9.56822982,2521.5,2521.4,0.79884581]
[1748667280191,5.00172982,2521.5,2521.4,0.79884581]
[1748667280981,2.65109529,2521.5,2521.4,0.79884581]
[1748667281890,3.44395529,2521.5,2521.4,0.00595581]
[1748667282889,2.65109529,2521.5,2521.4,0.79884581]
[1748667283091,1.41489529,2521.5,2521.4,0.79884581]
[1748667283686,2.20775529,2521.5,2521.4,0.00595581]
[1748667284287,1.41489529,2521.5,2521.4,0.79884581]
[1748667285889,1.41489529,2521.6,2521.5,0.79286]
[1748667286290,2.20773529,2521.6,2521.4,0.79883581]
[1748667286490,3.47963529,2521.6,2521.4,0.79883581]
[1748667286790,2.68679529,2521.6,2521.5,0.79286]
[1748667287094,3.47963529,2521.6,2521.4,0.79883581]
[1748667287790,1.41489529,2521.5,2521.4,0.79883581]
[1748667287993,2.20775529,2521.5,2521.4,0.79883581]
[1748667288190,1.41489529,2521.5,2521.4,0.79883581]
[1748667288388,2.20775529,2521.5,2521.4,0.79883581]
[1748667288587,3.47965529,2521.5,2521.4,0.79883581]
[1748667288787,2.68679529,2521.5,2521.4,0.79883581]
[1748667290390,1.41489529,2521.5,2521.4,2.15773581]
[1748667294890,1.41489529,2521.6,2521.5,0.79286]
[1748667296188,1.41489529,2521.6,2521.4,2.15772581]
[1748667296395,1.41489529,2521.6,2521.5,0.79286]
[1748667298493,1.41489529,2521.7,2521.6,0.79283]
[1748667301094,1.41489529,2521.8,2521.7,0.7928]
[1748667301597,2.20767529,2521.8,2521.6,0.6609]
[1748667301785,1.41489529,2521.8,2521.7,0.7928]
[1748667301988,0.664,2521.9,2521.8,0.79277]
[1748667302387,2.10739085,2521.9,2521.7,0.79278]
[1748667302592,2.10739085,2521.9,2521.8,0.79277]
[1748667302787,0.664,2521.9,2521.8,0.79277]
[1748667302998,3.2078,2522.0,2521.9,0.79273]
[1748667303795,3.2078,2522.0,2521.9,1.44603]
[1748667303997,4.65044142,2522.0,2521.9,1.44603]
[1748667307904,1.43668561,2522.0,2521.9,6.44603]
[1748667308308,1.43668561,2522.0,2521.9,7.77763]
[1748667308898,3.2078,2522.6,2522.4,0.79255]
[1748667309104,3.2078,2522.6,2522.5,1.46425]
[1748667309407,3.2078,2522.6,2521.9,1.98184]
[1748667309600,4.556,2522.6,2522.3,0.79259]
[1748667309800,1.9825,2522.5,2522.3,0.79259]
[1748667310008,1.9825,2522.5,2522.4,0.79258]
[1748667310397,0.6343,2522.5,2522.4,0.79258]
[1748667310702,3.2078,2522.6,2522.5,0.79255]
[1748667310901,3.2078,2522.6,2522.4,0.79256]
[1748667311102,4.5147,2522.6,2522.4,0.79256]
[1748667313207,5.30722,2522.6,2522.3,2.10638]
[1748667313509,5.30723,2522.6,2522.3,0.79261]
[1748667313710,1.2724,2522.5,2522.3,0.79261]
[1748667314412,2.06495,2522.5,2522.2,1.44932]
[1748667314899,1.2724,2522.4,2522.2,1.44932]
[1748667315308,0.63,2522.3,2522.2,0.79262]
[1748667315807,1.2724,2522.4,2522.3,0.79261]
[1748667316001,0.6605,2522.5,2522.4,0.79258]
[1748667316696,3.2078,2522.6,2522.5,0.79255]
[1748667318406,3.2078,2522.6,2522.5,1.45545]
[1748667319214,4.00031,2522.6,2522.5,0.6629]
[1748667319406,4.00031,2522.6,2522.3,1.44959]
[1748667319407,0.79255,2522.5,2522.3,1.44959]
[1748667319712,2.11555,2522.5,2522.3,1.44959]
[1748667320212,1.323,2522.5,2522.4,0.79258]
[1748667320915,3.55400115,2522.5,2522.3,1.4496]
[1748667321105,1.45618,2522.4,2522.2,0.79264]
[1748667321306,1.9866,2522.4,2522.2,0.79264]
[1748667321709,1.323,2522.3,2522.2,0.79264]
[1748667323409,1.323,2522.3,2522.1,0.6396]
[1748667323615,1.323,2522.3,2522.1,1.43225]
[1748667324116,1.323,2522.3,2522.2,0.79264]
[1748667325909,2.76275033,2522.3,2522.2,0.79264]
[1748667327019,1.43975033,2522.3,2522.2,0.79264]
[1748667327320,1.43975033,2522.3,2522.2,5.29654]
[1748667328018,5.26372,2522.6,2522.3,0.79258]
[1748667328216,2.68575,2522.5,2522.2,2.08872]
[1748667328413,1.8932,2522.5,2522.3,0.7926]
[1748667328813,1.44097879,2522.4,2522.3,0.7926]
[1748667329718,1.44097879,2522.4,2522.2,1.2961]
[1748667329719,1.44097879,2522.4,2522.2,0.79263]
[1748667330020,1.2895,2522.3,2522.2,0.79263]
[1748667330519,2.73047879,2522.3,2522.2,0.79263]
[1748667330822,2.73047879,2522.3,2522.2,0.79264]
[1748667331022,2.73047879,2522.3,2522.1,0.6396]
[1748667331325,2.73047879,2522.3,2522.1,1.43227]
[1748667331618,4.4882,2522.2,2521.9,2.08402]
[1748667331817,1.2804,2522.1,2521.9,1.975]
[1748667332023,1.9525,2522.1,2521.9,2.76772]
[1748667332724,1.44097879,2522.0,2521.9,2.76772]
[1748667333522,1.44097879,2522.0,2521.9,0.6837]
[1748667333720,3.51407879,2522.0,2521.7,4.70278]
[1748667333919,0.79274,2521.9,2521.7,3.91]
[1748667334116,0.79277,2521.8,2521.6,0.6834]
[1748667334317,0.79277,2521.8,2521.6,1.47622]
[1748667334516,2.0008,2521.7,2521.6,1.47622]
[1748667334811,2.0008,2521.7,2521.6,0.6834]
[1748667335016,2.0008,2521.7,2521.5,4.64054]
[1748667335217,3.44177879,2521.7,2521.5,4.64054]
[1748667335520,1.44097879,2521.7,2521.6,0.79283]
[1748667335720,1.44097879,2521.7,2521.6,2.81593]
[1748667335913,1.44097879,2521.9,2521.8,0.79277]
[1748667336712,1.44097879,2522.0,2521.9,0.79273]
[1748667337119,0.6711,2522.1,2521.9,0.79273]
[1748667337621,1.46378,2522.1,2521.9,0.79273]
[1748667337822,1.46378,2522.1,2522.0,0.6735]
[1748667338123,2.9058734,2522.1,2522.0,0.6735]
[1748667338317,4.1545734,2522.1,2522.0,0.6735]
[1748667339616,3.3618934,2522.1,2522.0,1.4662]
[1748667340019,4.1545634,2522.1,2522.0,0.6735]
[1748667340722,4.1545634,2522.1,2522.0,1.4662]
[1748667340918,3.3618934,2522.1,2522.0,1.4662]
[1748667341227,1.4420934,2522.1,2522.0,1.4662]
[1748667342327,1.4420934,2522.1,2522.0,6.4662]
[1748667342516,1.4420934,2522.1,2522.0,7.0909]
[1748667343223,5.81e-06,2522.7,2522.0,8.27996]
[1748667343421,5.81e-06,2522.7,2522.5,0.79252]
[1748667343719,5.81e-06,2522.7,2522.6,2.0202]
[1748667343924,1.44130671,2522.7,2522.6,2.0202]
[1748667344222,2.23378671,2522.7,2522.6,2.0202]
[1748667346122,1.44130671,2522.7,2522.6,2.0202]
[1748667346321,1.44130671,2522.7,2522.6,2.81271]
[1748667348327,2.23378671,2522.7,2522.6,2.0202]
[1748667348519,2.23378671,2522.7,2522.6,0.6649]
[1748667348720,3.50328671,2522.7,2522.6,0.6649]
[1748667350526,1.44130671,2522.7,2522.6,1.45741]
[1748667351228,2.23378671,2522.7,2522.6,1.45741]
[1748667351823,2.23378671,2522.7,2522.6,0.6649]
[1748667352727,1.44130671,2522.7,2522.6,1.45741]
[1748667354127,1.44130671,2522.7,2522.6,10.36541]
[1748667354919,1.44130671,2522.7,2522.6,11.73321]
[1748667355240,5.81e-06,2522.7,2522.6,11.73321]
[1748667357429,5.81e-06,2522.7,2522.6,6.73321]
[1748667359633,5.81e-06,2522.7,2522.6,9.94101]
[1748667368037,5.81e-06,2522.7,2522.6,6.73321]
[1748667368231,5.81e-06,2522.7,2522.6,9.94101]
[1748667369838,0.6508,2523.8,2523.7,0.79217]
[1748667370535,1.8948,2523.8,2523.7,0.79217]
[1748667370840,2.68695,2523.8,2523.5,0.7981533]
[1748667371034,1.244,2523.7,2523.5,0.7981533]
[1748667372034,1.244,2523.7,2523.6,0.7922]
[1748667372538,1.244,2523.7,2523.5,0.0059433]
[1748667372938,1.244,2523.7,2523.5,0.7981633]
[1748667373539,1.244,2523.7,2523.6,0.7922]
[1748667377344,0.6508,2523.8,2523.7,0.79217]
[1748667378542,1.9805,2523.8,2523.7,0.79217]
[1748667383948,3.41712005,2523.8,2523.7,0.79217]
[1748667384547,1.9805,2523.8,2523.7,0.79217]
[1748667384948,1.9805,2523.8,2523.7,4.69517]
[1748667389545,1.9805,2523.8,2523.7,7.90297]
[1748667390152,0.0059433,2524.0,2523.9,0.79211]
[1748667390355,3.3e-06,2524.0,2523.9,0.79211]
[1748667390558,3.3e-06,2524.0,2523.9,5.79211]
[1748667390858,3.3e-06,2524.0,2523.9,7.75241]
[1748667391650,3.3e-06,2524.0,2523.9,2.75241]
[1748667391849,3.3e-06,2524.0,2523.9,6.65541]
[1748667392159,3.3e-06,2524.0,2523.9,5.33601]
[1748667396661,3.3e-06,2524.0,2523.9,6.66661]
[1748667397562,3.3e-06,2524.0,2523.9,9.87441]
[1748667414078,3.3e-06,2524.0,2523.9,5.97141]
[1748667414279,3.3e-06,2524.0,2523.9,9.87041]
[1748667416878,3.3e-06,2524.0,2523.9,8.53981]
[1748667418382,3.3e-06,2524.0,2523.9,9.81461]
[1748667421887,3.3e-06,2524.0,2523.9,8.53981]
[1748667422787,3.3e-06,2524.0,2523.9,9.81561]
[1748667423283,1.44018371,2524.0,2523.9,9.81561]
[1748667423482,1.44018371,2524.0,2523.9,8.53981]
[1748667423785,1.44018371,2524.0,2523.9,7.89891]
[1748667424787,1.44018371,2524.0,2523.9,3.99991]
[1748667424990,1.44747593,2524.0,2523.9,3.99991]
[1748667425388,3.45417593,2524.0,2523.9,3.99991]
[1748667429480,1.44747593,2524.0,2523.9,3.99991]
[1748667431489,1.44747593,2524.0,2523.9,5.30941]
[1748667432291,0.00729552,2524.0,2523.9,5.30941]
[1748667432691,1.44670366,2524.0,2523.9,5.30941]
[1748667436886,0.00729552,2524.0,2523.9,2.10161]
[1748667437090,0.00729552,2524.0,2523.9,5.30941]
[1748667454903,5.52e-06,2524.0,2523.9,5.30941]
[1748667457915,5.52e-06,2524.0,2523.9,2.10161]
[1748667458117,5.52e-06,2524.0,2523.9,5.30941]
[1748667460822,5.52e-06,2524.0,2523.9,3.99991]
[1748667461115,5.52e-06,2524.0,2523.9,7.89491]
[1748667463518,5.52e-06,2524.0,2523.9,9.22781]
[1748667467523,8.82e-06,2524.2,2524.1,0.79204]
[1748667468124,8.82e-06,2524.2,2524.1,1.41404]
[1748667483839,8.82e-06,2524.2,2524.1,4.68204]
[1748667487538,8.82e-06,2524.2,2524.1,0.79204]
[1748667487739,8.82e-06,2524.2,2524.1,4.68204]
[1748667495150,8.82e-06,2524.2,2524.1,0.79204]
[1748667495441,8.82e-06,2524.2,2524.1,4.68204]
[1748667496644,8.82e-06,2524.2,2524.1,0.79204]
[1748667496843,8.82e-06,2524.2,2524.1,4.68204]
[1748667497039,5.00000882,2524.2,2524.1,4.68204]
[1748667497440,6.43873735,2524.2,2524.1,0.79204]
[1748667497640,6.43873735,2524.2,2524.0,0.79206]
[1748667497842,2.7029,2524.1,2524.0,0.79206]
[1748667498250,7.7029,2524.1,2524.0,0.79206]
[1748667499148,9.14016238,2524.1,2524.0,0.79206]
[1748667499852,7.7029,2524.1,2524.0,0.79206]
[1748667504353,2.7029,2524.1,2524.0,0.79206]
[1748667504548,7.7029,2524.1,2524.0,0.79206]
[1748667505558,8.82e-06,2524.2,2524.1,0.79204]
[1748667512261,8.82e-06,2524.2,2524.1,4.67804]
[1748667515771,8.82e-06,2524.2,2524.1,0.79204]
[1748667516663,5.00000882,2524.2,2524.1,0.79204]
[1748667517364,8.82e-06,2524.2,2524.1,0.79204]
[1748667518170,5.00000882,2524.2,2524.1,0.79204]
[1748667519078,6.43510026,2524.2,2524.1,0.79204]
[1748667520465,1.43510026,2524.2,2524.1,0.79204]
[1748667521080,8.82e-06,2524.2,2524.1,0.79204]
[1748667522672,0.63310882,2524.2,2524.1,0.79204]
[1748667524674,2.06947127,2524.2,2524.1,0.79204]
[1748667529191,1.43637127,2524.2,2524.1,0.79204]
[1748667532193,8.82e-06,2524.2,2524.1,0.79204]
[1748667532587,1.43746675,2524.2,2524.1,0.79204]
[1748667535985,1.43746675,2524.2,2524.1,1.41504]
[1748667539386,1.43746675,2524.2,2524.1,0.79204]
[1748667541795,6.43746675,2524.2,2524.1,0.79204]
[1748667541995,8.46447675,2524.2,2523.9,3.2078]
[1748667542194,1.8642,2524.1,2524.0,0.79208]
[1748667542695,1.8642,2524.1,2523.9,3.2078]
[1748667542895,23.269,2524.0,2522.5,9.07111]
[1748667543095,3.2078,2522.9,2522.8,0.79245]
[1748667560604,0.6613,2523.1,2523.0,0.79239]
[1748667561496,1.9868,2523.1,2523.0,0.79239]
[1748667563313,3.2078,2523.2,2523.1,0.79236]
[1748667565109,3.2078,2523.2,2523.1,1.44106]
[1748667570012,3.2078,2523.2,2523.1,0.79236]
[1748667571519,3.2078,2523.2,2523.0,0.79238]
[1748667571710,2.0057,2523.1,2522.9,4.6714]
[1748667572010,1.33,2523.0,2522.9,4.6714]
[1748667573020,2.76739273,2523.0,2522.9,4.6714]
[1748667573225,2.76739273,2523.0,2522.9,0.7924]
[1748667579019,5.97519273,2523.0,2522.9,0.7924]
[1748667592732,4.64519273,2523.0,2522.9,0.7924]
[1748667594833,1.43739273,2523.0,2522.9,0.7924]
[1748667595335,4.64519273,2523.0,2522.9,0.7924]
[1748667596836,4.64519273,2523.0,2522.8,1.2975]
[1748667597030,4.64519273,2523.0,2522.9,0.79242]
[1748667600530,4.64519273,2523.0,2522.8,1.2975]
[1748667600734,4.64519273,2523.0,2522.7,0.6419]
[1748667600938,3.35479273,2522.9,2522.6,0.0059433]
[1748667601231,3.2078,2522.7,2522.6,0.0059433]
[1748667601437,3.2078,2522.7,2522.6,0.7984533]
[1748667602030,4.64519273,2522.7,2522.6,0.7984533]
[1748667602236,4.64519273,2522.7,2522.6,1.4484533]
[1748667602532,1.43739273,2522.7,2522.6,1.4484533]
[1748667604040,1.43739273,2522.8,2522.7,0.79247]
[1748667604334,1.43739273,2522.8,2522.7,2.72417]
[1748667604937,1.43739273,2522.8,2522.7,1.9317]
[1748667605839,1.43739273,2522.8,2522.7,2.72417]
[1748667608435,1.43739273,2522.8,2522.7,6.60017]
[1748667609439,0.0059433,2522.9,2522.8,0.79244]
[1748667610137,1.44520181,2522.9,2522.8,2.12814]
[1748667612338,3.2078,2523.0,2522.8,7.12814]
[1748667612547,1.43925851,2523.0,2522.9,2.13431]
[1748667615245,1.43925851,2523.0,2522.8,0.79242]
[1748667615449,1.43925851,2523.0,2522.9,0.79241]
[1748667615648,1.43925851,2523.0,2522.8,1.3629]
[1748667615944,1.43925851,2523.0,2522.8,2.15532]
[1748667616537,1.43925851,2523.0,2522.8,2.15534]
[1748667616739,2.80285851,2523.0,2522.8,2.15534]
[1748667617438,2.80285851,2523.0,2522.9,0.79241]
[1748667617645,2.80285851,2523.0,2522.8,2.15532]
[1748667618246,2.80285851,2523.0,2522.9,0.79241]
[1748667619644,2.80285851,2523.0,2522.6,3.8637433]
[1748667619850,2.80285851,2523.0,2522.6,4.6562333]
[1748667620050,1.2653,2522.9,2522.6,0.0059433]
[1748667620450,0.626,2522.8,2522.6,0.7984433]
[1748667621239,3.2078,2522.7,2522.6,0.7984433]
[1748667621447,3.2078,2522.7,2522.6,0.0059433]
[1748667621645,4.5717,2522.7,2522.6,0.0059433]
[1748667625155,6.00026356,2522.7,2522.6,0.0059433]
[1748667625350,6.00026356,2522.7,2522.6,0.7984433]
[1748667626047,4.63636356,2522.7,2522.6,0.7984433]
[1748667626951,5.91556356,2522.7,2522.6,0.0059433]
[1748667627153,5.91556356,2522.7,2522.6,0.7984433]
[1748667628157,4.63636356,2522.7,2522.6,0.7984433]
[1748667628858,3.2078,2522.7,2522.6,0.7984433]
[1748667630260,1.2838,2522.9,2522.6,0.7984433]
[1748667630453,1.2838,2522.9,2522.7,0.6291]
[1748667630756,1.42816218,2522.8,2522.7,1.42157]
[1748667631551,1.42816218,2522.8,2522.7,2.74947]
[1748667631751,1.42816218,2522.8,2522.7,1.957]
[1748667631952,1.42816218,2522.8,2522.7,2.74947]
[1748667632255,1.42816218,2522.8,2522.7,1.957]
[1748667632455,5.1979,2523.0,2522.7,0.6291]
[1748667632658,1.3067,2522.9,2522.7,0.6291]
[1748667632855,1.3067,2522.9,2522.7,1.42157]
[1748667633054,1.3067,2522.9,2522.6,4.6694333]
[1748667633257,1.3067,2522.9,2522.6,0.0059433]
[1748667633456,0.79245,2522.8,2522.6,0.0059433]
[1748667633656,4.4995,2522.7,2522.6,0.0059433]
[1748667634058,5.92774868,2522.7,2522.6,0.0059433]
[1748667635154,5.92774868,2522.7,2522.6,0.7984433]
[1748667635461,4.63604868,2522.7,2522.6,0.7984433]
[1748667636161,3.2078,2522.7,2522.6,0.7984433]
[1748667636856,3.2078,2522.7,2522.6,0.0059433]
[1748667637756,4.00027,2522.7,2522.6,0.0059433]
[1748667637961,10.42837003,2522.7,2522.6,0.0059433]
[1748667638556,9.63590003,2522.7,2522.1,3.872]
[1748667638762,3.2078,2522.3,2521.3,3.872]
[1748667638958,3.2078,2521.6,2521.3,0.79289]
[1748667639259,3.2078,2521.6,2521.4,0.79286]
[1748667639461,1.2562,2521.5,2521.4,0.79286]
[1748667639654,1.2562,2521.5,2521.2,0.6865433]
[1748667639859,1.2562,2521.5,2521.3,0.7929]
[1748667640162,1.923,2521.5,2521.3,0.7929]
[1748667640360,1.923,2521.5,2521.2,0.0059433]
[1748667640661,1.923,2521.5,2521.4,0.79288]
[1748667641159,3.2078,2521.6,2521.5,0.79285]
[1748667641362,0.0059433,2521.7,2521.6,0.79282]
[1748667641560,0.0059433,2521.7,2521.6,4.68552]
[1748667641755,0.0059433,2521.7,2521.6,9.68552]
[1748667641967,0.0059433,2521.7,2521.6,10.95332]
[1748667642657,1.2968,2522.4,2522.2,0.79262]
[1748667643661,1.2968,2522.4,2522.1,2.70326]
[1748667643864,1.2968,2522.4,2522.2,0.79263]
[1748667644068,1.2968,2522.4,2522.2,2.05523]
[1748667644370,3.2078,2522.3,2522.1,1.44064]
[1748667644667,3.2078,2522.3,2522.2,0.79263]
[1748667645067,3.2078,2522.3,2522.2,2.05523]
[1748667645466,3.2078,2522.3,2522.2,1.2626]
[1748667646070,3.2078,2522.3,2522.2,2.05523]
[1748667646367,3.2078,2522.3,2522.2,1.2626]
[1748667646562,3.2078,2522.3,2522.2,2.05523]
[1748667646965,1.2968,2522.4,2522.2,1.2626]
[1748667647368,1.2968,2522.4,2522.2,2.05523]
[1748667648265,1.2968,2522.4,2522.3,0.7926]
[1748667648567,3.2137433,2522.6,2522.5,0.79253]
[1748667649366,3.2137433,2522.6,2522.4,2.14695]
[1748667649767,3.2137433,2522.6,2522.5,0.79253]
[1748667650375,3.2137433,2522.6,2522.4,2.14695]
[1748667650769,3.2137433,2522.6,2522.4,1.3544]
[1748667651377,3.2137433,2522.6,2522.4,2.14696]
[1748667653177,3.2137433,2522.6,2522.5,0.79254]
[1748667654284,3.2137433,2522.6,2522.4,2.14694]
[1748667654987,3.2137433,2522.6,2522.5,0.79253]
[1748667656587,3.2137433,2522.6,2522.4,0.79255]
[1748667656887,3.2137433,2522.6,2522.5,0.79253]
[1748667657085,0.0059433,2522.6,2522.5,0.79253]
[1748667657284,3.2137433,2522.6,2522.5,0.79253]
[1748667658586,0.0059433,2522.6,2522.5,0.79253]
[1748667664093,0.0059433,2522.6,2522.5,5.79253]
[1748667664292,3.3e-06,2522.6,2522.5,9.00033]
[1748667666195,3.3e-06,2522.6,2522.5,10.28873]
[1748667666993,3.3e-06,2522.6,2522.5,14.15673]
[1748667668491,3.3e-06,2522.6,2522.5,10.28873]
[1748667668692,3.3e-06,2522.6,2522.5,14.15673]
[1748667669290,3.3e-06,2522.6,2522.5,10.28873]
[1748667669593,3.3e-06,2522.6,2522.5,14.15673]
[1748667672589,3.3e-06,2522.6,2522.5,14.15573]
[1748667677898,3.3e-06,2522.6,2522.5,9.15573]
[1748667678196,3.3e-06,2522.6,2522.5,7.86733]
[1748667678500,3.3e-06,2522.6,2522.5,4.65953]
[1748667678689,3.3e-06,2522.6,2522.5,0.79253]
[1748667678891,1.2770033,2522.6,2522.5,0.79253]
[1748667679095,1.2770033,2522.6,2522.5,4.65953]
[1748667683390,1.2770033,2522.6,2522.5,7.86733]
[1748667684393,3.3e-06,2522.6,2522.5,7.86733]
[1748667684999,3.3e-06,2522.6,2522.5,7.86533]
[1748667688202,3.3e-06,2522.6,2522.5,12.86533]
[1748667688406,3.3e-06,2522.6,2522.5,9.00033]
[1748667688609,3.3e-06,2522.6,2522.5,12.86433]
[1748667691103,3.3e-06,2522.6,2522.5,14.14493]
[1748667693303,0.1982033,2522.6,2522.5,14.14493]
[1748667693707,3.3e-06,2522.6,2522.5,14.14493]
[1748667694505,3.3e-06,2522.6,2522.5,9.14493]
[1748667695598,3.3e-06,2522.6,2522.5,5.93713]
[1748667695798,3.3e-06,2522.6,2522.5,9.14493]
[1748667699404,3.3e-06,2522.6,2522.5,14.14493]
[1748667700411,6.6e-06,2522.8,2522.7,0.79247]
[1748667701208,6.6e-06,2522.8,2522.7,2.37375485]
[1748667701804,1.3614,2523.5,2523.4,0.79225]
[1748667702008,1.3614,2523.5,2523.4,7.86405]
[1748667702412,0.6663,2524.1,2524.0,0.79207]
[1748667702605,0.6663,2524.1,2524.0,4.65607]
[1748667703811,2.0024,2524.1,2524.0,4.65607]
[1748667703998,7.0024,2524.1,2524.0,4.65607]
[1748667704402,7.0024,2524.1,2524.0,0.79207]
[1748667704713,7.79446,2524.1,2523.8,0.7980633]
[1748667704903,4.5439,2524.0,2523.8,0.0059433]
[1748667705210,1.3361,2523.9,2523.8,0.7980733]
[1748667705408,6.3361,2523.9,2523.8,0.7980733]
[1748667706608,1.3361,2523.9,2523.8,0.7980733]
[1748667707818,0.6663,2524.1,2524.0,0.79207]
[1748667708109,0.6663,2524.1,2524.0,4.65607]
[1748667711010,1.9075,2524.2,2524.1,0.79203]
[1748667713704,0.0039596,2524.3,2524.2,0.792]
[1748667713911,7.10020103,2525.8,2525.7,0.79153]
[1748667714202,7.10020103,2525.8,2525.7,8.08133]
[1748667714607,7.14401186,2525.8,2525.7,8.08133]
[1748667715108,0.04381083,2525.8,2525.7,8.08133]
[1748667718308,0.04381083,2525.8,2525.7,3.99933]
[1748667718714,0.04381083,2525.8,2525.7,8.08033]
[1748667719012,5.04381083,2525.8,2525.7,3.99933]
[1748667720620,5.04381083,2525.8,2525.5,0.0059433]
[1748667720816,1.3133,2525.7,2525.5,0.7975233]
[1748667721117,0.6224,2525.6,2525.5,0.7975433]
[1748667721316,0.6224,2525.6,2525.5,0.0059433]
[1748667721514,8.8302,2525.6,2525.2,4.08]
[1748667721714,0.04381083,2525.4,2525.3,0.79164]